bitfinex/quotes_ETHUSD_20211001
["timestamp","ask_amount","ask_price","bid_price","bid_amount"]
[1633123646438,3.2785958,3325.4,3325.2,23.79238]
[1633123647238,3.2785958,3325.4,3325.2,6.01238]
[1633123647639,3.21841677,3325.4,3325.2,6.01238]
[1633123648240,3.21841677,3325.4,3325.3,0.77813097]
[1633123648438,3.21841677,3325.4,3325.3,1.98081425]
[1633123649842,3.16841677,3325.4,3325.3,1.98081425]
[1633123650041,0.0534958,3325.4,3325.3,0.77813097]
[1633123650245,1.503,3325.5,3325.3,1.0084145]
[1633123650443,1.503,3325.5,3325.3,7.0208145]
[1633123650648,1.403,3325.5,3325.3,7.0208145]
[1633123651044,1.403,3325.5,3325.4,0.91541602]
[1633123651243,0.3568472,3325.5,3325.4,0.91541602]
[1633123652045,0.41036704,3325.5,3325.3,6.79053097]
[1633123653047,0.41036704,3325.5,3325.4,1.13113347]
[1633123654850,0.41036704,3325.5,3325.4,7.14226347]
[1633123655649,0.3568472,3325.5,3325.4,7.37251456]
[1633123656249,0.35880607,3325.5,3325.4,7.37251456]
[1633123657054,0.35880607,3325.5,3325.4,6.24138109]
[1633123657453,0.41232605,3325.5,3325.4,6.01113]
[1633123660256,0.41036718,3325.5,3325.4,6.01113]
[1633123661061,0.3568472,3325.5,3325.4,6.01113]
[1633123661257,0.3568472,3325.5,3325.4,6.24138109]
[1633123661857,0.3568472,3325.5,3325.4,6.50695703]
[1633123662857,0.3568472,3325.5,3325.4,6.27670594]
[1633123663058,0.41036732,3325.5,3325.4,6.27670594]
[1633123664458,0.41036732,3325.5,3325.4,25.35070594]
[1633123664658,0.41036732,3325.5,3325.4,27.70296379]
[1633123664857,0.003,3326.0,3325.4,27.82536379]
[1633123665059,0.003,3326.0,3325.4,26.40896379]
[1633123665459,0.003,3326.0,3325.5,1.59819953]
[1633123665660,0.003,3326.0,3325.7,6.01069]
[1633123665859,0.003,3326.0,3325.8,3.0053091]
[1633123666459,0.003,3326.0,3325.9,0.77618513]
[1633123666663,0.003,3326.0,3325.9,1.88904608]
[1633123666859,0.003,3326.0,3325.9,8.15638507]
[1633123667658,1.503,3326.0,3325.9,8.15638507]
[1633123668460,0.02689165,3326.0,3325.9,25.94511202]
[1633123668864,0.02689165,3326.0,3325.9,28.29736987]
[1633123669064,0.02689165,3326.0,3325.9,28.41576987]
[1633123669464,0.02689165,3326.0,3325.9,29.59136987]
[1633123669669,0.003,3326.5,3326.4,1.60652193]
[1633123669863,0.003,3326.5,3326.4,21.79971415]
[1633123670065,2.78916561,3327.4,3326.4,23.27427039]
[1633123670263,2.78916561,3327.4,3326.5,1.00236619]
[1633123670461,2.78916561,3327.4,3327.3,1.07016328]
[1633123670667,2.78916561,3327.4,3327.3,5.57586328]
[1633123670860,0.003,3328.0,3327.4,6.48254527]
[1633123671065,3.038939,3329.3,3327.4,6.48254527]
[1633123671066,5.56441067,3329.4,3328.7,8.49592303]
[1633123671264,5.56441067,3329.4,3329.3,15.0]
[1633123671265,5.51441067,3329.4,3329.3,15.0]
[1633123671469,5.32917967,3329.4,3329.3,15.2789259]
[1633123671661,5.32917967,3329.4,3329.3,16.34709109]
[1633123671861,5.32917967,3329.4,3329.3,37.39380915]
[1633123672062,5.32917967,3329.4,3329.3,37.39940915]
[1633123672261,0.0068,3329.7,3329.3,41.90478915]
[1633123672462,0.0068,3329.7,3329.4,0.85062551]
[1633123672669,0.0068,3329.7,3329.4,18.90955141]
[1633123672861,0.0068,3329.7,3329.4,19.32632735]
[1633123673063,0.0068,3329.7,3329.4,21.82431113]
[1633123673460,0.0068,3329.7,3329.4,21.82191113]
[1633123673660,0.0068,3329.7,3329.4,21.82431113]
[1633123673862,0.27005814,3330.0,3329.6,3.00178]
[1633123674065,0.27005814,3330.0,3329.7,0.0959259]
[1633123674260,0.27005814,3330.0,3329.7,17.8759259]
[1633123674461,0.27005814,3330.0,3329.9,0.003]
[1633123674861,0.006,3330.1,3330.0,0.72994186]
[1633123675060,0.006,3330.1,3330.0,5.32838776]
[1633123675261,0.006,3330.1,3330.0,6.6425737]
[1633123675463,0.006,3330.1,3330.0,24.4295737]
[1633123675665,0.006,3330.1,3330.0,5.46078776]
[1633123675862,0.006,3330.1,3330.0,0.94466776]
[1633123676062,0.006,3330.1,3330.0,0.83186776]
[1633123676461,0.0068,3330.3,3330.0,0.83186776]
[1633123676669,0.00101325,3330.8,3330.0,0.83186776]
[1633123676861,0.00101325,3330.8,3330.1,0.006]
[1633123677064,0.00101325,3330.8,3330.0,0.33486776]
[1633123677264,3.97251619,3331.0,3330.7,0.003]
[1633123677662,3.97251619,3331.0,3330.8,0.2687082]
[1633123677862,3.97251619,3331.0,3330.9,0.0959259]
[1633123678063,4.92432803,3331.0,3330.9,0.0989259]
[1633123678462,2.99030003,3331.0,3330.8,3.41e-05]
[1633123679265,2.98030003,3331.0,3330.8,3.41e-05]
[1633123679463,0.14895233,3330.9,3330.3,1.14823455]
[1633123679663,0.87999564,3330.7,3330.3,1.14823455]
[1633123679862,0.14895233,3330.9,3330.3,4.53711396]
[1633123681263,0.14895233,3330.9,3330.3,1.14823455]
[1633123681663,0.864227,3330.6,3330.3,1.14823455]
[1633123682262,0.864227,3330.6,3330.3,1.13413455]
[1633123682462,0.814227,3330.6,3330.3,1.13413455]
[1633123683064,0.14895233,3330.9,3330.3,1.13413455]
[1633123683265,0.009,3331.0,3330.4,0.13448433]
[1633123683466,1.0016213,3330.8,3330.4,0.13448433]
[1633123683664,0.009,3331.0,3330.4,0.13448433]
[1633123684065,0.7599984,3330.6,3330.4,0.13448433]
[1633123684865,0.90886747,3330.6,3330.3,0.94054523]
[1633123685267,0.85886747,3330.6,3330.3,0.94054523]
[1633123685466,0.85886747,3330.6,3330.0,0.23894186]
[1633123686067,0.85886747,3330.6,3330.2,4.50268]
[1633123686468,0.85886747,3330.6,3330.3,1.18360197]
[1633123686669,0.02599418,3330.4,3329.5,0.003]
[1633123686868,0.031166,3330.5,3329.5,0.003]
[1633123686869,0.02443602,3329.8,3329.5,0.003]
[1633123687077,0.02414282,3330.4,3329.4,0.003]
[1633123687270,0.02414282,3330.4,3329.0,3.0053807]
[1633123687467,0.02414282,3330.4,3329.1,0.003]
[1633123687671,0.77178745,3329.6,3329.4,0.90934902]
[1633123688069,0.02414282,3330.4,3329.5,0.003]
[1633123688271,0.02550617,3330.4,3329.5,0.003]
[1633123688669,0.88397635,3329.8,3329.6,0.13466222]
[1633123689072,0.77496086,3329.7,3329.6,0.13466222]
[1633123690270,0.02550617,3330.4,3329.6,0.13466222]
[1633123690473,0.14865468,3329.7,3329.5,1.21360606]
[1633123690673,0.14865468,3329.7,3329.5,1.21660606]
[1633123691072,0.14865468,3329.7,3329.5,0.003]
[1633123691472,0.14865468,3329.7,3329.5,4.50412]
[1633123691935,0.14865468,3329.7,3329.5,4.50712]
[1633123692072,0.14865468,3329.7,3329.5,7.50958]
[1633123692276,0.14865468,3329.7,3329.5,0.003]
[1633123692674,0.14865468,3329.7,3329.2,0.90536476]
[1633123692874,0.14865468,3329.7,3329.3,0.003]
[1633123693074,0.14865468,3329.7,3329.3,4.50727]
[1633123693473,0.14865468,3329.7,3329.4,0.003]
[1633123693673,0.14865468,3329.7,3329.5,3.0026365]
[1633123694074,0.75612042,3329.7,3329.5,3.0056365]
[1633123694277,0.70612042,3329.7,3329.6,0.13477546]
[1633123694475,0.91782327,3329.9,3329.6,0.13477546]
[1633123694939,0.91782327,3329.9,3329.6,0.03477546]
[1633123695075,3.00454335,3330.4,3329.6,0.03477546]
[1633123695277,19.91573381,3330.9,3329.6,2.38729821]
[1633123695477,0.99427673,3330.3,3330.0,0.003]
[1633123695876,0.99427673,3330.3,3329.7,0.003]
[1633123696276,0.99427673,3330.3,3329.6,0.003]
[1633123697277,1.84829182,3330.3,3329.6,0.003]
[1633123698676,1.84936728,3330.3,3329.6,0.003]
[1633123698877,1.84936728,3330.3,3329.6,0.77202969]
[1633123699277,1.84936728,3330.3,3329.7,0.003]
[1633123699478,0.02866708,3329.6,3329.5,3.0056365]
[1633123700277,0.02866708,3329.6,3329.5,3.87708183]
[1633123700478,0.02866708,3329.6,3329.5,3.82708183]
[1633123700943,0.02866708,3329.6,3329.5,4.77900546]
[1633123701079,0.02866708,3329.6,3329.5,4.72900546]
[1633123701479,0.22729819,3329.6,3329.5,4.72900546]
[1633123701678,0.17729819,3329.6,3329.5,4.72900546]
[1633123702879,0.17729819,3329.6,3329.5,3.85756013]
[1633123703679,0.17729819,3329.6,3329.5,2.9056365]
[1633123704680,0.17729819,3329.6,3329.5,3.75851074]
[1633123704880,0.17729819,3329.6,3329.5,2.9056365]
[1633123705081,1.08997262,3330.0,3329.5,2.9056365]
[1633123705284,1.08997262,3330.0,3329.5,3.0010946]
[1633123706680,1.91562375,3330.0,3329.5,3.0010946]
[1633123706880,1.91562375,3330.0,3329.5,2.9056365]
[1633123707083,0.18801248,3329.9,3329.5,2.9056365]
[1633123707280,0.18801248,3329.9,3329.6,4.50424]
[1633123707683,0.18801248,3329.9,3329.6,4.47257051]
[1633123708682,0.18801248,3329.9,3329.5,2.9056365]
[1633123708883,0.18801248,3329.9,3329.5,0.003]
[1633123709284,0.18898047,3329.9,3328.9,2.32481426]
[1633123709483,0.18898047,3329.9,3329.0,0.006]
[1633123709683,1.20815387,3329.3,3329.0,5.45259839]
[1633123709949,0.18898047,3329.9,3329.0,5.45259839]
[1633123710083,0.18898047,3329.9,3329.1,0.003]
[1633123710683,0.00096799,3329.9,3329.2,0.09547428]
[1633123711082,0.00096799,3329.9,3329.3,0.003]
[1633123711883,1.05094248,3329.8,3329.3,2.41336236]
[1633123712086,0.00096799,3329.9,3329.5,0.99917019]
[1633123712287,0.00096799,3329.9,3329.4,0.003]
[1633123712485,0.18797685,3329.8,3329.5,0.003]
[1633123712684,0.18797685,3329.8,3329.3,0.003]
[1633123713091,1.17784262,3329.6,3329.3,0.003]
[1633123715888,1.17784262,3329.6,3329.1,0.003]
[1633123716091,0.18797685,3329.8,3329.1,0.003]
[1633123716288,0.00096799,3329.9,3329.4,0.09549045]
[1633123716687,0.00096799,3329.9,3329.5,0.003]
[1633123717087,0.77010095,3329.7,3329.5,0.003]
[1633123717288,0.67010095,3329.7,3329.5,0.003]
[1633123717488,1.13676837,3329.8,3329.5,0.003]
[1633123717889,1.3247692,3329.8,3329.5,0.003]
[1633123718292,1.3247692,3329.8,3329.1,0.003]
[1633123718489,0.03166593,3329.2,3329.1,0.81316886]
[1633123718958,0.03166593,3329.2,3329.1,0.003]
[1633123719289,0.03166593,3329.2,3329.0,0.006]
[1633123719489,0.93201606,3329.6,3329.0,0.006]
[1633123719689,0.0009682,3329.2,3329.0,0.006]
[1633123719889,1.5009682,3329.2,3329.0,0.006]
[1633123721289,1.5009682,3329.2,3329.0,4.51068]
[1633123721693,1.5009682,3329.2,3329.1,0.15777076]
[1633123723499,1.63883798,3329.2,3329.1,0.003]
[1633123723893,1.63883798,3329.2,3328.8,0.006]
[1633123724492,1.20002731,3329.1,3328.8,0.006]
[1633123725494,2.20471069,3329.1,3328.8,0.006]
[1633123725694,1.20002731,3329.1,3328.8,0.006]
[1633123725895,1.20002731,3329.1,3328.8,2.24982872]
[1633123726099,5.70639731,3329.1,3328.8,0.006]
[1633123726294,1.20002731,3329.1,3328.9,0.006]
[1633123726694,0.02566425,3328.9,3328.7,2.41992303]
[1633123727294,0.02566425,3328.9,3328.8,0.15486787]
[1633123728893,0.15429561,3328.9,3328.7,2.41992303]
[1633123730496,0.15526389,3328.9,3328.7,2.41992303]
[1633123730960,4.66183389,3328.9,3328.7,2.41992303]
[1633123732700,4.53320253,3328.9,3328.8,0.15486787]
[1633123734499,4.53320253,3328.9,3328.7,2.41992303]
[1633123734500,4.66183403,3328.9,3328.7,2.41992303]
[1633123736301,4.63616978,3328.9,3328.7,2.41992303]
[1633123738102,4.50753828,3328.9,3328.7,2.41992303]
[1633123738302,4.50753828,3328.9,3328.8,0.15486787]
[1633123739973,4.63616991,3328.9,3328.7,2.41992303]
[1633123740107,4.63616991,3328.9,3327.8,0.006]
[1633123740309,4.50728,3328.4,3327.8,0.006]
[1633123741106,0.00187014,3328.3,3327.8,0.006]
[1633123741906,4.50753,3328.1,3327.8,0.006]
[1633123742107,0.00187014,3328.3,3327.8,0.006]
[1633123742307,3.00498,3328.1,3327.8,0.006]
[1633123743706,3.00498,3328.1,3327.9,0.1551431]
[1633123744108,3.00498,3328.1,3328.0,0.006]
[1633123745708,3.13342089,3328.1,3328.0,0.006]
[1633123745973,3.13342089,3328.1,3327.8,0.006]
[1633123747109,7.64098089,3328.1,3327.8,0.006]
[1633123747309,0.0104699,3328.0,3327.8,0.006]
[1633123749311,0.0104699,3328.0,3327.9,0.15515929]
[1633123749712,0.0104699,3328.0,3327.9,0.16115929]
[1633123749911,1.5104699,3328.0,3327.9,0.16115929]
[1633123750310,6.0181499,3328.0,3327.9,0.16115929]
[1633123750916,1.5104699,3328.0,3327.9,0.006]
[1633123751111,1.63888706,3328.0,3327.9,0.006]
[1633123751314,1.63888706,3328.0,3327.8,0.006]
[1633123751516,4.50803,3327.9,3327.8,0.006]
[1633123751712,4.50803,3327.9,3327.0,2.99618742]
[1633123751974,4.50803,3327.9,3327.1,1.57341673]
[1633123752312,3.00531,3327.8,3327.1,1.57341673]
[1633123752514,4.50809,3327.7,3327.1,1.57341673]
[1633123752713,4.50809,3327.7,3327.2,1.57296969]
[1633123752914,4.50809,3327.7,3326.9,0.003]
[1633123753313,4.50809,3327.7,3326.9,1.5770069]
[1633123753714,4.50809,3327.7,3327.0,1.57682162]
[1633123753918,4.50809,3327.7,3327.1,1.57355643]
[1633123754116,0.003,3327.5,3326.7,9.81114927]
[1633123754315,0.003,3327.5,3326.8,3.0052735]
[1633123754719,0.003,3327.5,3326.9,0.15538607]
[1633123755121,0.003,3327.5,3327.1,4.50763]
[1633123755717,0.003,3327.5,3327.1,4.45763]
[1633123756518,0.13127406,3327.5,3327.1,4.45763]
[1633123756719,0.13127406,3327.5,3327.1,7.4625107]
[1633123756920,0.13127406,3327.5,3327.1,3.0048807]
[1633123757518,0.13127406,3327.5,3327.3,1.294]
[1633123757719,0.13127406,3327.5,3327.2,2.29074388]
[1633123757918,0.13127406,3327.5,3327.3,4.50723]
[1633123758520,0.13127406,3327.5,3327.4,1.294]
[1633123759520,0.13127406,3327.5,3327.3,4.50723]
[1633123759720,0.13127406,3327.5,3327.4,1.294]
[1633123760123,7.51203,3328.2,3327.2,4.50731]
[1633123760323,7.51203,3328.2,3327.5,0.15528887]
[1633123760324,3.00482,3328.2,3327.5,0.15528887]
[1633123760522,3.00482,3328.2,3327.5,0.15828887]
[1633123761123,3.00482,3328.2,3327.5,0.14781731]
[1633123761326,4.50773,3327.9,3327.5,0.14781731]
[1633123761924,4.57719845,3327.9,3327.5,0.003]
[1633123762323,4.57719845,3327.9,3327.0,0.003]
[1633123762324,4.57719845,3327.9,3327.0,0.006]
[1633123762527,4.57719845,3327.9,3327.1,3.0050707]
[1633123762725,4.52719845,3327.9,3327.1,7.5124707]
[1633123762925,4.52719845,3327.9,3327.2,0.003]
[1633123764323,0.01057581,3327.4,3327.2,0.003]
[1633123765726,0.01057581,3327.4,3327.3,0.21425492]
[1633123766124,0.01057581,3327.4,3327.3,0.21725492]
[1633123767527,0.0799489,3327.4,3327.3,0.003]
[1633123767926,0.0799489,3327.4,3327.2,0.003]
[1633123768127,0.0799489,3327.4,3327.1,7.4657507]
[1633123768530,0.0799489,3327.4,3327.1,2.9580707]
[1633123768926,0.06937309,3327.4,3327.1,2.8580707]
[1633123769329,0.06937309,3327.4,3327.2,4.50752]
[1633123770334,0.06937309,3327.4,3326.9,0.003]
[1633123770928,0.06937309,3327.4,3326.5,0.006]
[1633123771131,0.009167,3327.5,3326.4,0.006]
[1633123771329,0.009167,3327.5,3327.0,0.21430352]
[1633123771530,4.50872,3327.3,3327.0,0.21430352]
[1633123771730,4.50872,3327.3,3327.0,0.21730352]
[1633123772130,9.02728014,3327.9,3327.0,0.21730352]
[1633123772532,4.50823,3327.5,3327.0,0.21730352]
[1633123773007,4.57759129,3327.5,3327.0,0.003]
[1633123773334,0.06936129,3327.5,3326.5,0.006]
[1633123773536,0.06936129,3327.5,3326.8,3.0054441]
[1633123773935,0.01047191,3327.3,3326.9,0.003]
[1633123776835,0.01047191,3327.3,3327.0,0.21431972]
[1633123777235,0.01047191,3327.3,3327.0,0.21731972]
[1633123778436,3.00567,3327.7,3327.0,0.003]
[1633123778635,0.06932561,3327.2,3327.0,0.003]
[1633123778835,0.06932561,3327.2,3326.5,0.006]
[1633123779239,4.57783561,3327.2,3326.5,0.006]
[1633123780237,4.57783561,3327.2,3326.4,0.006]
[1633123780643,4.57783561,3327.2,3326.4,0.46935057]
[1633123781039,4.57783561,3327.2,3326.5,0.006]
[1633123781438,4.57783561,3327.2,3326.5,0.46919457]
[1633123781839,4.57783561,3327.2,3326.6,0.003]
[1633123782241,4.50851,3327.2,3326.7,0.21436833]
[1633123782638,4.50851,3327.2,3326.8,0.003]
[1633123783639,0.01047161,3327.1,3326.8,0.003]
[1633123784038,0.01047161,3327.1,3326.8,1.57834117]
[1633123784242,0.01047161,3327.1,3326.9,1.57547455]
[1633123784438,0.01047161,3327.1,3327.0,1.57537416]
[1633123784638,0.01047161,3327.1,3327.0,1.57837908]
[1633123784841,0.01047161,3327.1,3327.0,0.003]
[1633123785243,4.50881,3327.0,3326.7,0.003]
[1633123786544,4.51920161,3327.1,3326.7,0.003]
[1633123786947,4.51920161,3327.1,3326.7,0.46657628]
[1633123787343,4.51920161,3327.1,3326.8,0.003]
[1633123787743,4.51920161,3327.1,3326.9,0.21435213]
[1633123788003,4.51920161,3327.1,3327.0,1.57822534]
[1633123788202,4.51920161,3327.1,3327.0,1.58122534]
[1633123789407,0.01047161,3327.1,3327.0,1.58122534]
[1633123789604,0.07978556,3327.1,3327.0,0.003]
[1633123790004,0.07978556,3327.1,3326.8,0.003]
[1633123791410,4.58849556,3327.1,3326.8,0.003]
[1633123791611,4.58849556,3327.1,3326.8,1.58275548]
[1633123791810,4.58849556,3327.1,3326.9,1.58222407]
[1633123792010,4.58849556,3327.1,3327.0,1.58246766]
[1633123792215,4.58849556,3327.1,3327.0,1.58526564]
[1633123792410,4.58849556,3327.1,3327.0,0.003]
[1633123792811,4.58849556,3327.1,3326.8,0.003]
[1633123793212,4.51918161,3327.1,3326.8,0.003]
[1633123795012,4.58847182,3327.1,3326.8,0.003]
[1633123795211,4.58847182,3327.1,3326.8,0.46858935]
[1633123795614,4.58847182,3327.1,3326.9,1.58707214]
[1633123795813,4.58847182,3327.1,3327.0,1.58454839]
[1633123796012,4.57800021,3327.1,3327.0,1.58686832]
[1633123796213,4.57800021,3327.1,3326.8,0.46570981]
[1633123796613,4.57800021,3327.1,3326.9,0.46569844]
[1633123796813,4.57800021,3327.1,3326.7,0.7760052]
[1633123796814,0.06929021,3327.1,3326.8,0.46547621]
[1633123797215,0.06929021,3327.1,3326.8,0.4644729]
[1633123798015,0.06929021,3327.1,3326.9,0.46452584]
[1633123799022,4.57788021,3327.1,3326.9,0.46452584]
[1633123799417,4.57788021,3327.1,3327.0,0.46425234]
[1633123799615,4.52788021,3327.1,3327.0,0.46425234]
[1633123800016,4.52788021,3327.1,3326.9,0.77369881]
[1633123800416,4.52788021,3327.1,3327.0,0.46419104]
[1633123800615,4.52788021,3327.1,3326.9,0.77369881]
[1633123801415,6.02788021,3327.1,3326.9,0.77369881]
[1633123803322,6.02788021,3327.1,3327.0,0.4654498]
[1633123803718,6.02788021,3327.1,3326.9,0.77369881]
[1633123804123,1.51929021,3327.1,3327.0,0.77604135]
[1633123804521,1.51929021,3327.1,3326.9,0.77621861]
[1633123804718,6.02787021,3327.1,3326.9,0.77621861]
[1633123805121,6.02787021,3327.1,3327.0,0.77669073]
[1633123805524,6.02787021,3327.1,3326.9,0.77638499]
[1633123806319,6.02787021,3327.1,3327.0,2.34921661]
[1633123806519,6.02787021,3327.1,3327.0,0.77641968]
[1633123806724,1.51929021,3327.1,3327.0,0.77641968]
[1633123809722,1.52717516,3327.1,3327.0,0.77641968]
[1633123813922,1.52717516,3327.1,3327.0,0.67641968]
[1633123814721,1.52717516,3327.1,3326.9,1.08447047]
[1633123814920,1.51929021,3327.1,3326.9,1.08447047]
[1633123815323,4.51680495,3327.0,3326.9,1.08447047]
[1633123816133,0.00788495,3327.0,3326.9,1.08447047]
[1633123818725,0.00788495,3327.0,3326.9,0.98447047]
[1633123820328,0.00788495,3327.0,3326.7,1.53662823]
[1633123820529,1.51929021,3327.1,3326.7,1.53662823]
[1633123820929,0.00788495,3326.9,3326.7,1.53662823]
[1633123821729,0.00788495,3326.9,3326.7,1.43662823]
[1633123822131,0.00788495,3326.9,3326.7,1.39762823]
[1633123822532,0.00788495,3326.9,3326.7,1.14762823]
[1633123822731,0.00788495,3326.9,3326.5,0.003]
[1633123824131,0.00788495,3326.9,3326.5,2.022478]
[1633123824332,0.00788495,3326.9,3326.5,1.922478]
[1633123824531,0.00788495,3326.9,3326.3,7.51394]
[1633123825931,0.003,3327.0,3326.3,7.51394]
[1633123826133,0.003,3327.0,3326.9,0.57747126]
[1633123826933,0.04727907,3327.0,3326.9,0.57747126]
[1633123830738,0.003,3327.0,3326.9,0.57747126]
[1633123831138,0.01088495,3327.0,3326.9,0.57747126]
[1633123831737,0.01088495,3327.0,3326.9,0.81683959]
[1633123831940,0.01088495,3327.0,3326.9,2.56304764]
[1633123832137,0.01088495,3327.0,3326.9,1.56304764]
[1633123832337,0.09976257,3327.0,3326.7,1.08883447]
[1633123832742,0.09976257,3327.0,3326.7,0.98883447]
[1633123834341,0.09976257,3327.0,3326.7,0.98277956]
[1633123834743,0.09976257,3327.0,3326.5,1.55517249]
[1633123835141,0.09976257,3327.0,3326.5,1.50517249]
[1633123835347,4.60866257,3327.0,3326.9,0.46731573]
[1633123835741,4.60866257,3327.0,3326.2,2.25838264]
[1633123836008,4.60866257,3327.0,3326.9,0.46747372]
[1633123836142,4.60866257,3327.0,3326.2,2.42994495]
[1633123836342,4.60077762,3327.0,3326.9,0.46748432]
[1633123836542,0.00788495,3326.6,3326.2,2.27342492]
[1633123836741,0.00788495,3326.6,3326.1,9.60154265]
[1633123837142,0.00788495,3326.6,3326.2,0.11987865]
[1633123837742,0.05234757,3326.6,3326.2,0.06987865]
[1633123837945,0.16383214,3326.5,3326.2,0.06987865]
[1633123839144,0.05234757,3326.6,3326.5,0.32766427]
[1633123839344,0.05234757,3326.6,3326.2,0.06987865]
[1633123839545,0.05234757,3326.6,3326.2,4.57846865]
[1633123840343,0.05234757,3326.6,3326.2,3.12846865]
[1633123841543,0.04446262,3326.6,3326.2,3.12846865]
[1633123842008,0.00788495,3326.4,3326.2,3.12846865]
[1633123842544,0.00788495,3326.4,3326.3,0.1418554]
[1633123843347,0.14974048,3326.4,3326.2,3.12846865]
[1633123845349,0.14974048,3326.4,3326.2,5.15836459]
[1633123845548,0.14974048,3326.4,3326.2,3.12846865]
[1633123846952,0.14185553,3326.4,3326.2,3.12846865]
[1633123847152,0.00788495,3326.3,3326.2,3.12846865]
[1633123848152,0.00788495,3326.3,3326.2,3.27035647]
[1633123848754,0.05232073,3326.3,3326.2,3.12846865]
[1633123848955,0.19414056,3326.3,3326.2,3.12846865]
[1633123850758,1.69414056,3326.3,3326.2,3.12846865]
[1633123851762,1.69414056,3326.3,3326.1,8.10323384]
[1633123851960,1.69414056,3326.3,3326.1,2.09181084]
[1633123852159,1.69414056,3326.3,3326.1,0.062332]
[1633123852160,1.68625561,3326.3,3326.1,0.062332]
[1633123852561,0.00788495,3326.2,3326.1,0.062332]
[1633123853565,0.00788495,3326.2,3326.1,0.20425224]
[1633123854361,0.14968103,3326.2,3326.1,0.062332]
[1633123858364,0.14968103,3326.2,3326.0,4.51192]
[1633123858567,0.14179608,3326.2,3326.1,1.56103261]
[1633123858964,0.00788495,3326.2,3326.1,1.56103261]
[1633123859165,0.00788495,3326.2,3326.1,1.70296906]
[1633123859365,0.00788495,3326.2,3326.1,0.14193645]
[1633123859765,0.00788495,3326.2,3326.1,1.56064368]
[1633123859966,0.14968117,3326.2,3326.1,1.56064368]
[1633123860167,0.14968117,3326.2,3326.1,7.07932368]
[1633123860367,0.14968117,3326.2,3326.1,4.588593]
[1633123860767,0.14968117,3326.2,3326.1,5.598593]
[1633123860968,0.14968117,3326.2,3326.1,4.588593]
[1633123861371,0.14968117,3326.2,3326.1,5.598593]
[1633123862169,0.10968117,3326.2,3326.1,7.32859014]
[1633123862366,0.10968117,3326.2,3326.1,7.79207581]
[1633123864570,1.54443578,3326.3,3326.1,7.95005357]
[1633123864770,1.54443578,3326.3,3326.2,2.81706]
[1633123865369,1.6701985,3326.3,3326.2,2.81706]
[1633123867969,1.6701985,3326.3,3326.1,2.81599933]
[1633123868170,1.6701985,3326.3,3326.2,1.72920501]
[1633123868369,1.6701985,3326.3,3326.2,0.77649011]
[1633123868569,1.6701985,3326.3,3326.2,2.50674393]
[1633123868768,1.6701985,3326.3,3326.2,0.77649011]
[1633123868969,1.6701985,3326.3,3326.2,1.73042138]
[1633123869175,4.51008,3326.2,3326.1,2.50746286]
[1633123869370,4.51008,3326.2,3326.1,0.77686256]
[1633123869570,4.51008,3326.2,3326.0,0.78015368]
[1633123869973,1.54443578,3326.3,3326.0,0.78015368]
[1633123870171,1.54443578,3326.3,3326.2,0.46601437]
[1633123870372,6.05418578,3326.3,3326.2,0.46601437]
[1633123870971,6.17994864,3326.3,3326.2,0.46601437]
[1633123871373,6.17994864,3326.3,3326.2,0.46560811]
[1633123871572,22.36019864,3326.3,3326.2,0.46560811]
[1633123871776,22.36019864,3326.3,3326.1,0.46549618]
[1633123872174,22.36019864,3326.3,3326.2,0.46546738]
[1633123872572,22.36019864,3326.3,3326.2,0.41546738]
[1633123872773,22.36019864,3326.3,3326.0,0.77880014]
[1633123873775,22.36019864,3326.3,3326.0,0.003]
[1633123873973,22.36019864,3326.3,3326.0,0.77750004]
[1633123874175,22.36019864,3326.3,3326.0,0.003]
[1633123875375,22.36019864,3326.3,3325.9,0.003]
[1633123875577,22.23443578,3326.3,3326.1,0.15797776]
[1633123876377,0.12575105,3326.2,3326.0,0.003]
[1633123876774,0.12575105,3326.2,3325.9,0.003]
[1633123878376,0.12575105,3326.2,3325.8,0.003]
[1633123881035,26.74430578,3326.3,3325.8,0.003]
[1633123881178,26.74430578,3326.3,3325.9,0.1580264]
[1633123881578,22.23443578,3326.3,3326.0,0.003]
[1633123881979,0.1257273,3326.2,3326.0,0.003]
[1633123882184,0.1257273,3326.2,3325.9,0.062332]
[1633123882580,0.1257273,3326.2,3325.8,0.4682365]
[1633123882980,0.1257273,3326.2,3325.9,0.003]
[1633123883386,0.1257273,3326.2,3325.7,0.4653848]
[1633123883387,0.1257273,3326.2,3325.8,0.003]
[1633123883581,4.6356573,3326.2,3325.8,0.003]
[1633123886380,4.6356573,3326.2,3325.8,1.7296561]
[1633123886581,20.69,3326.1,3325.9,1.72668356]
[1633123886781,20.69,3326.1,3326.0,1.72684824]
[1633123887049,20.69,3326.1,3326.0,1.72984824]
[1633123887390,20.81571549,3326.1,3326.0,1.72984824]
[1633123887583,0.12571549,3326.1,3326.0,1.72881384]
[1633123887785,35.37571549,3326.1,3326.0,1.72823773]
[1633123887985,39.88581549,3326.1,3326.0,1.71951574]
[1633123888185,39.88581549,3326.1,3326.0,0.003]
[1633123888388,39.93019817,3326.1,3326.0,0.003]
[1633123888583,39.93019817,3326.1,3325.8,1.71778957]
[1633123888584,39.93019817,3326.1,3325.9,1.71726316]
[1633123888784,39.93019817,3326.1,3326.0,1.71762713]
[1633123888985,35.42009817,3326.1,3326.0,1.72065956]
[1633123889187,35.42009817,3326.1,3326.0,1.72005033]
[1633123889586,35.42009817,3326.1,3326.0,1.70235033]
[1633123890587,35.42009817,3326.1,3326.0,5.033e-05]
[1633123890786,37.68401284,3326.1,3325.5,0.003]
[1633123890990,0.009167,3325.8,3325.5,0.003]
[1633123891186,0.009167,3325.8,3325.4,0.003]
[1633123891385,0.009167,3325.8,3324.9,0.42230872]
[1633123891585,0.003,3325.5,3324.9,0.42230872]
[1633123891786,4.51118,3325.3,3324.7,0.84082821]
[1633123891987,4.51118,3325.3,3324.7,0.062332]
[1633123892186,4.51118,3325.3,3325.0,0.15828588]
[1633123892590,39.770347,3325.3,3325.0,0.15828588]
[1633123892786,39.770347,3325.3,3324.5,0.003]
[1633123892987,39.89585947,3325.3,3324.5,0.003]
[1633123893189,39.87085947,3325.3,3324.5,0.003]
[1633123893388,39.87085947,3325.3,3324.4,0.003]
[1633123893787,39.91497019,3325.3,3324.4,0.003]
[1633123893991,35.42879019,3325.3,3324.3,0.003]
[1633123894386,35.45422163,3325.3,3324.3,0.003]
[1633123894587,20.69,3324.5,3324.3,0.003]
[1633123895786,20.64,3324.5,3324.3,0.003]